{"text_format":"2","workbook":"xlsx","n_sheets":1,"sheets":["INFORME 6"],"not_rendered":{"charts":0,"images":0,"macros":0,"external_links":0,"defined_names":2,"comments":0,"pivot_tables":0},"unopened":[],"bounds":{"document_bytes":16777216,"sheet_cells":100000,"run_cost":"one","rows_first":2000,"rows_last":500,"rows_between":2000,"halvings":0,"cell_chars":16384,"cell_head_chars":4096},"cells_cut":0,"cells_raw":0,"read":"whole","date_system":"1900"}

{"sheet":"INFORME 6","index":0,"n_rows":72,"n_cols":6,"rows_kept":72,"cut":false,"hidden":false,"merged":[[2,0,2,5],[6,0,6,1],[7,0,7,1],[8,0,8,1]]}
["AMÉRICA MÓVIL PERÚ S.A.C."]
[]
["INFORME 6: INGRESOS OPERATIVOS MAYORISTAS POR EMPRESA"]
[]
["Periodo de reporte: Enero a Diciembre 2016"]
[]
["Expresado en Miles de Nuevos Soles",null,"Ingresos calculados (en base a precios de lista)","Ajustes\n(descuentos y\npromociones)","Estado de Resultados de Contabilidad Separada (valor facturado)","Nota"]
["INGRESOS OPERATIVOS MAYORISTAS",null,{"$f":"+C9+C13+C64+C65","v":462676.59362600005},{"$f":"+D9+D13+D64+D65","v":0},{"$f":"+E9+E13+E64+E65","v":462676.59362600005}]
["De empresas operadoras vinculadas",null,{"$f":"+C10","v":24468.479614},{"$f":"+D10","v":0},24468.479614]
["GRUPO OLO (OLO + CABLEVISION + TVS + VELATEL)",null,{"$f":"+C11+C12","v":24468.479614},{"$f":"+D11+D12","v":0},24468.479614]
[null," Terminación de Llamadas en la Red del Servicio de Telefonía Fija Local  ",0.26961399999999996,0,{"$f":"+C11-D11","v":0.26961399999999996}]
[null," Otros  ",24468.21,0,24468.21]
["De empresas operadoras no vinculadas",null,{"$f":"+C14+C24+C34+C44+C54","v":366555.76277700003},{"$f":"+D14+D24+D34+D44+D54","v":0},366555.76277700003]
["TELEFÓNICA DEL PERÚ S.A.A.",null,{"$f":"+SUM(C15:C23)","v":223617.78180099998},{"$f":"+SUM(D15:D23)","v":0},223617.78180099998]
[null," Transporte Conmutado Local  ",0,0,{"$f":"+C15-D15","v":0}]
[null," Transporte Conmutado de Larga Distancia Nacional  ",28.389052,0,28.389052]
[null," Acceso a los Teléfonos de Uso Público  ",21.259772000000002,0,21.259772000000002]
[null," Terminación de Llamadas en la Red de Servicio Móvil  ",209456.30650099998,0,209456.30650099998]
[null," Terminación de Llamadas en la Red del Servicio de Telefonía Fija Local  ",4970.3227790000001,0,4970.3227790000001]
[null," Facturación y Recaudación  ",0,0,0]
[null," Adecuación de Red  ",874.27168999999992,0,874.27168999999992]
[null," Acceso a la Plataforma de Pago  ",48.951569000000006,0,48.951569000000006]
[null," Enlaces de Interconexión  ",8218.2804379999998,0,8218.2804379999998]
["ENTEL PERÚ",null,{"$f":"+SUM(C25:C33)","v":105451.43481700002},{"$f":"+SUM(D25:D33)","v":0},105451.43481700002]
[null," Transporte Conmutado Local  ",4.2717340000000004,0,{"$f":"+C25-D25","v":4.2717340000000004}]
[null," Transporte Conmutado de Larga Distancia Nacional  ",301.880448,0,301.880448]
[null," Acceso a los Teléfonos de Uso Público  ",0,0,0]
[null," Terminación de Llamadas en la Red de Servicio Móvil  ",102863.35881800001,0,102863.35881800001]
[null," Terminación de Llamadas en la Red del Servicio de Telefonía Fija Local  ",1689.5453670000002,0,1689.5453670000002]
[null," Facturación y Recaudación  ",0,0,0]
[null," Adecuación de Red  ",306.17556000000002,0,306.17556000000002]
[null," Acceso a la Plataforma de Pago  ",0,0,0]
[null," Enlaces de Interconexión  ",286.20289000000002,0,286.20289000000002]
["VIETTEL PERÚ S.A.C.",null,{"$f":"+SUM(C35:C43)","v":25262.880873000002},{"$f":"+SUM(D35:D43)","v":0},25262.880873000002]
[null," Transporte Conmutado Local  ",1.1627E-2,0,{"$f":"+C35-D35","v":1.1627E-2}]
[null," Transporte Conmutado de Larga Distancia Nacional  ",139.80412100000001,0,139.80412100000001]
[null," Acceso a los Teléfonos de Uso Público  ",0,0,0]
[null," Terminación de Llamadas en la Red de Servicio Móvil  ",24369.368241,0,24369.368241]
[null," Terminación de Llamadas en la Red del Servicio de Telefonía Fija Local  ",180.93971400000001,0,180.93971400000001]
[null," Facturación y Recaudación  ",0,0,0]
[null," Adecuación de Red  ",572.75717000000009,0,572.75717000000009]
[null," Acceso a la Plataforma de Pago  ",0,0,0]
[null," Enlaces de Interconexión  ",0,0,0]
["VIRGIN MOBILE PERÚ S.A.",null,{"$f":"+SUM(C45:C53)","v":83.506253000000001},{"$f":"+SUM(D45:D53)","v":0},83.506253000000001]
[null," Transporte Conmutado Local  ",0,0,{"$f":"+C45-D45","v":0}]
[null," Transporte Conmutado de Larga Distancia Nacional  ",0,0,0]
[null," Acceso a los Teléfonos de Uso Público  ",0,0,0]
[null," Terminación de Llamadas en la Red de Servicio Móvil  ",82.914428999999998,0,82.914428999999998]
[null," Terminación de Llamadas en la Red del Servicio de Telefonía Fija Local  ",0.59182399999999991,0,0.59182399999999991]
[null," Facturación y Recaudación  ",0,0,0]
[null," Adecuación de Red  ",0,0,0]
[null," Acceso a la Plataforma de Pago  ",0,0,0]
[null," Enlaces de Interconexión  ",0,0,0]
["OTROS OPERADORES",null,{"$f":"+SUM(C55:C63)","v":12140.159032999996},{"$f":"+SUM(D55:D63)","v":0},12140.159032999996]
[null," Transporte Conmutado Local  ",15.945148999999999,0,{"$f":"+C55-D55","v":15.945148999999999}]
[null," Transporte Conmutado de Larga Distancia Nacional  ",89.015846999999994,0,89.015846999999994]
[null," Acceso a los Teléfonos de Uso Público  ",4.3166370000000001,0,4.3166370000000001]
[null," Terminación de Llamadas en la Red de Servicio Móvil  ",1733.847796,0,1733.847796]
[null," Terminación de Llamadas en la Red del Servicio de Telefonía Fija Local  ",197.85868400000001,0,197.85868400000001]
[null," Facturación y Recaudación  ",22.397960999999999,0,22.397960999999999]
[null," Adecuación de Red  ",12.489600000000001,0,12.489600000000001]
[null," Acceso a la Plataforma de Pago  ",119.037999,0,119.037999]
[null," Enlaces de Interconexión  ",9945.2493599999962,0,9945.2493599999962]
["De redes internacionales",null,44957.347770000008,0,44957.347770000008]
["Otros",null,26695.003464999994,0,26695.003464999994]
["Ingreso Imputado",null,"No aplica","No aplica","No aplica"]
[]
[null,"(*) Nota: en el presente informe se consideran los siguientes conceptos:"]
[null,"----> Sección \"De empresas operadoras vinculadas\": las categorías de ingreso que contengan operaciones con empresas afiliadas del mismo grupo."]
[null,"----> Sección \"De empresas operadoras no vinculadas\": las categorías relacionadas a la línea de negocio de Interconexión, a excepción de aquellos conceptos relacionados a originación internacional."]
[null,"----> Sección \"De redes internacionales\": las categorías relacionadas a la línea de negocio de Interconexión que incluyen componente de originación internacional (Categorías 56 y 57) y las componentes de Tránsito de Redes Internacional, la cual se encuentra incluida en la categoría 62."]
[null,"----> Sección \"Otros\": las categorías 48 y 50 y las componentes de Tránsito de Redes Saliente Internacional y otros conceptos asociados al negocio mayorista (Liquidación por Cascada, Interoperabilidad, Llamada por Llamada, etc). Estas dos últimas componentes se encuentra incluidas en la categoría 62."]